[Event "45th FIDE Olympiad 2024"]
[Site "Budapest"]
[Date "2024.09.15"]
[Round "5.54"]
[White "Blomqvist, Erik"]
[Black "Sargsyan, Shant"]
[Result "1/2-1/2"]
[ECO "C88"]
[WhiteElo "2491"]
[BlackElo "2649"]
[Annotator "TA"]
[PlyCount "60"]
[EventDate "2024.09.05"]
[EventType "team-tourn"]
[EventCountry "HUN"]
[SourceTitle "playchess.com"]
[Source "ChessBase"]
[SourceQuality "1"]
[WhiteTeam "Sweden"]
[BlackTeam "Armenia"]
[WhiteTeamCountry "SWE"]
[BlackTeamCountry "ARM"]
[TimeControl "40/5400+30:1800+30"]

{[%evp 19,60,16,9,19,14,14,14,13,13,26,18,15,24,27,15,0,0,4,0,4,2,5,0,5,0,4,5,0,0,7,4,6,4,0,0,0,0,0,0,0,0,0,0]} 1. e4 {[%emt 0:00:04]} e5 {[%emt 0:01:17]} 2. Nf3 {[%emt 0:00:10]} Nc6 {[%emt 0:00:06]} 3. Bb5 {[%emt 0:00:08]} a6 {[%emt 0:00:08]} 4. Ba4 {[%emt 0:00:05]} Nf6 {[%emt 0:00:03]} 5. O-O {[%emt 0:00:13]} Be7 {[%emt 0:00:02]} 6. Re1 {[%emt 0:00:20]} b5 {[%emt 0:00:42]} 7. Bb3 {[%emt 0:00:08]} O-O {[%emt 0:00:04]} 8. a4 {[%emt 0:00:17]} b4 {[%emt 0:00:11]} 9. d4 {[%emt 0:01:17]} d6 {[%emt 0:00:10]} 10. dxe5 {[%emt 0:00:17]} Nxe5 {[%emt 0:00:04]} 11. Nxe5 {[%emt 0:00:39]} dxe5 {[%emt 0:00:08]} 12. Qe2 {[%emt 0:00:24]} Bc5 {[%emt 0:00:05]} 13. Be3 {[%emt 0:01:38]} Bd4 {[%emt 0:00:05]} 14. Bxd4 {[%emt 0:01:42]} Qxd4 {[%emt 0:00:06]} 15. Rd1 {[%emt 0:00:16][%cal Be1d1,Bd1d4,Bd4b4,Bb4b7,Bb7b3,Bb3e3,Be3e4,Be4f4][%mdl 32]} Bg4 {[%emt 0:00:05]} 16. Rxd4 {[%emt 0:00:15]} Bxe2 {[%emt 0:00:03]} 17. Rxb4 {[%emt 0:00:57] [#] aiming for Nc3. The position is equal.} a5 $1 {[%emt 0:01:58]} 18. Rb7 {[%emt 0:00:49] Threatens to win with Nc3.} Rfc8 $1 {[%emt 0:00:54][%cal Oe2a6]} 19. Ba2 {[%emt 0:02:00]} Nxe4 {[%emt 0:05:49]} ({Of course not} 19... Ba6 20. Rb3 $16) 20. Rb3 {[%emt 0:01:33] Re3 is the strong threat.} Bc4 {[%emt 0:00:56]} 21. Re3 {[%emt 0:00:15][%csl LRc4,LRe4]} Bxa2 {[%emt 0:00:15]} 22. Rxe4 {[%emt 0:00:44]} Bxb1 {[%emt 0:01:12]} 23. Rxb1 $11 {[%emt 0:00:06][%mdl 4096] Endgame. KRR-KRR} f6 {[%emt 0:01:21]} 24. f4 {[%emt 0:02:38]} exf4 {[%emt 0:02:00]} 25. Rxf4 {[%emt 0:00:29]} c5 {[%emt 0:03:59]} 26. Rd1 {[%emt 0:04:19]} Rd8 {[%emt 0:01:37]} 27. Rxd8+ {[%emt 0:00:09]} Rxd8 {[%emt 0:00:02]} 28. Rc4 {[%emt 0:00:21]} Rd5 {[%emt 0:00:10]} 29. Kf2 {[%emt 0:00:46]} Kf7 {[%emt 0:00:03]} 30. b3 {[%emt 0:01:11]} h5 {[%emt 0:00:11] A rather calm draw.   Weighted Error Value: White=0.01 (flawless) /Black=0.01 (flawless) .  OK:         	White=12    	Black=10     Best:        	---       	Black=2      Strong:       	---       	Black=2} 1/2-1/2

[Event "45th FIDE Olympiad 2024"]
[Site "Budapest"]
[Date "2024.09.15"]
[Round "5.54"]
[White "Veer, Gandhi"]
[Black "Ayyad, Maher"]
[Result "1/2-1/2"]
[ECO "A02"]
[WhiteElo "1792"]
[BlackElo "1980"]
[PlyCount "139"]
[EventDate "2024.09.05"]
[EventType "team-tourn"]
[EventCountry "HUN"]
[WhiteTeam "Tanzania"]
[BlackTeam "Bahrain"]
[WhiteTeamCountry "TAN"]
[BlackTeamCountry "BHN"]
[TimeControl "40/5400+30:1800+30"]

1. f4 Nf6 2. Nf3 g6 3. b3 Bg7 4. Bb2 d6 5. e3 c5 6. Be2 O-O 7. O-O Nc6 8. Kh1 a6 9. c4 e5 10. fxe5 Ng4 11. h3 Ngxe5 12. d4 Nxf3 13. Rxf3 cxd4 14. exd4 Qh4 15. Qd2 Bh6 16. Qd1 Bg4 17. Rf1 Bxh3 18. Qe1 Qxe1 19. Rxe1 Bf5 20. Bf3 Nb4 21. Na3 Nd3 22. Re2 Nxb2 23. Rxb2 Rab8 24. Re2 b5 25. Rae1 Bg5 26. Rd1 Bf6 27. Kg1 g5 28. cxb5 axb5 29. Rf2 Kg7 30. Bc6 Bg4 31. Rd3 b4 32. Nc2 Rb6 33. Bd5 Be6 34. Ne3 Rc8 35. Rd1 Rc3 36. Bxe6 fxe6 37. Ng4 Bd8 38. Re1 h5 39. Nh2 g4 40. Rfe2 Bf6 41. Rxe6 Bxd4+ 42. Kh1 Be5 43. R1xe5 dxe5 44. Rxb6 Rc1+ 45. Nf1 Rxf1+ 46. Kh2 Rf2 47. Kg3 Rxa2 48. Kh4 Rxg2 49. Kxh5 g3 50. Kg4 Rb2 51. Kxg3 Rxb3+ 52. Kf2 Kf7 53. Ke2 Rb1 54. Kd3 b3 55. Kc3 e4 56. Rxb3 Rxb3+ 57. Kxb3 Ke6 58. Kc3 Ke5 59. Kd2 Kd4 60. Ke2 e3 61. Ke1 Ke4 62. Ke2 Kf4 63. Ke1 Kf3 64. Kf1 Kf4 65. Ke2 Ke4 66. Ke1 Kd3 67. Kd1 Kc3 68. Ke2 Kd4 69. Ke1 e2 70. Kxe2 1/2-1/2

[Event "45th FIDE Olympiad 2024"]
[Site "Budapest"]
[Date "2024.09.15"]
[Round "5.55"]
[White "Sargissian, Gabriel"]
[Black "Hillarp Persson, Tiger"]
[Result "1-0"]
[ECO "E11"]
[WhiteElo "2646"]
[BlackElo "2457"]
[Annotator "TA"]
[PlyCount "91"]
[EventDate "2024.09.05"]
[EventType "team-tourn"]
[EventCountry "HUN"]
[SourceTitle "playchess.com"]
[Source "ChessBase"]
[SourceQuality "1"]
[WhiteTeam "Armenia"]
[BlackTeam "Sweden"]
[WhiteTeamCountry "ARM"]
[BlackTeamCountry "SWE"]
[TimeControl "40/5400+30:1800+30"]

{[%evp 36,91,17,6,18,38,35,35,22,18,26,-31,-20,-71,-77,-70,-72,-125,-132,-157,-141,-202,-210,-228,-72,-74,-89,-79,-82,-60,-66,-116,-115,-106,-103,-98,0,0,0,-7,118,118,156,116,278,252,406,295,320,318,296,304,309,300,320,316,408,380]} 1. d4 {[%emt 0:00:18] ChessBase II} Nf6 {[%emt 0:00:12]} 2. c4 {[%emt 0:00:09]} e6 {[%emt 0:00:07]} 3. Nf3 {[%emt 0:00:38]} d5 {[%emt 0:00:08]} 4. g3 {[%emt 0:00:44]} Bb4+ {[%emt 0:00:07]} 5. Bd2 {[%emt 0:00:23]} Be7 {[%emt 0:00:11]} 6. Bg2 {[%emt 0:00:27]} O-O {[%emt 0:00:09]} 7. O-O {[%emt 0:00:36]} c6 {[%emt 0:00:06]} 8. Qc2 {[%emt 0:00:45]} Nbd7 {[%emt 0:01:58]} 9. Rc1 {[%emt 0:02:11] E11: Bogo-Indian.} a5 {[%emt 0:01:43] 9...a5 is better than 9...b6.} 10. a4 {[%emt 0:03:18]} Ne4 {[%emt 0:09:12]} 11. Be3 {[%emt 0:04:35]} g5 $146 {[%emt 0:25:16]} ({Predecessor:} 11... f5 12. Nc3 Bd6 13. Rd1 Qe7 14. Rac1 Ndf6 15. Ne5 Bxe5 16. dxe5 Ng4 17. Bd4 c5 18. Nxe4 dxe4 {½-½ Aronian,L (2780)-Wei,Y (2706) Tata Steel-A 79th 2017 (2)}) 12. Ne1 {[%emt 0:13:44]} Nd6 {[%emt 0:00:21]} 13. Na3 {[%emt 0:02:06]} Nf5 {[%emt 0:01:28]} 14. Qd3 {[%emt 0:02:34]} Nxe3 {[%emt 0:03:06]} 15. Qxe3 {[%emt 0:01:33]} Nb6 {[%emt 0:01:04]} 16. b3 {[%emt 0:03:36]} Bf6 {[%emt 0:04:14]} 17. Rd1 {[%emt 0:04:20]} Bg7 {[%emt 0:02:10]} 18. Nf3 {[%emt 0:03:39]} h6 {[%emt 0:01:04]} 19. h4 {[%emt 0:01:16]} gxh4 {[%emt 0:10:35]} 20. Nxh4 {[%emt 0:01:33]} Qg5 {[%emt 0:02:01]} 21. f4 {[%emt 0:01:56]} Qf6 {[%emt 0:00:51]} 22. Nf3 {[%emt 0:00:35]} Bd7 {[%emt 0:01:24]} 23. Nc2 {[%emt 0:11:43]} (23. Qd3 $11) 23... Qg6 $1 $15 {[%emt 0:01:24]} 24. Nfe1 {[%emt 0:06:14]} (24. c5 $11) 24... dxc4 $17 {[%emt 0:03:23]} 25. bxc4 {[%emt 0:02:15]} Nxc4 {[%emt 0:00:08]} 26. Qf3 {[%emt 0:00:49]} (26. Qd3 $142) 26... Rad8 $17 {[%emt 0:04:55]} 27. Rab1 {[%emt 0:04:15]} b5 {[%emt 0:03:51]} 28. Nd3 {[%emt 0:02:34]} (28. Kf2 $17 {keeps fighting.}) 28... b4 $19 {[%emt 0:07:18]} (28... bxa4 29. Rbc1 $17) 29. Rbc1 {[%emt 0:04:02]} Be8 $2 {[%emt 0:03:38]} (29... c5 $1 $19 {has better winning chances.} 30. Nxc5 Nb2) 30. Nc5 {[%emt 0:02:21]} Nb6 {[%emt 0:07:50]} 31. e3 {[%emt 0:01:50]} Nd5 {[%emt 0:00:35]} 32. Na1 {[%emt 0:00:38]} Nc3 {[%emt 0:02:11]} 33. Nab3 {[%emt 0:03:38]} (33. Rd3 $15) 33... Nxd1 $17 {[%emt 0:00:53]} 34. Rxd1 {[%emt 0:00:08]} Ra8 {[%emt 0:00:30]} 35. Bf1 {[%emt 0:03:15]} Bf6 {[%emt 0:00:49]} (35... Kh8 $17 36. Bd3 f5) 36. Bd3 $11 {[%emt 0:01:57]} Qg7 {[%emt 0:00:09]} 37. Kf2 {[%emt 0:00:12]} Ra7 {[%emt 0:02:16]} (37... Be7 $11 {keeps the balance.}) 38. Rh1 $16 {[%emt 0:02:05]} Bd7 {[%emt 0:00:46]} (38... Be7 $6 39. Rh2 h5 (39... Bxc5 40. Nxc5 f5 41. Nxe6 $11) 40. Rxh5 $11 (40. Qxh5 f5 $11)) 39. g4 {[%emt 0:00:39]} Bc8 $2 {[%emt 0:01:17]} (39... Be7 $16 {was called for.}) 40. Rh5 $18 {[%emt 0:07:38]} Rd8 $2 {[%emt 0:00:27]} (40... e5 {was necessary.} 41. g5 (41. Qxc6 $2 exf4 42. Bf5 Bxf5 $19) (41. fxe5 Bxg4 42. exf6 Bxf3 $16) 41... Bd8 42. dxe5 (42. gxh6 Qg4 $11) (42. Rxh6 exf4 43. exf4 Be7 $18) 42... hxg5 43. Bh7+ (43. Qxc6 gxf4 44. exf4 Bg4 $18) (43. Rh7 Qxh7 44. Bxh7+ Kxh7 $18) 43... Qxh7 44. Rxh7 Kxh7) 41. Qh1 {[%emt 0:06:24]} (41. Qxc6 Be7 $11 (41... Qxg4 42. Qh1 $11)) 41... Qxg4 {[%emt 0:21:55]} 42. Rxh6 {[%emt 0:01:22]} Rd5 {[%emt 0:00:08]} 43. Be4 {[%emt 0:05:21]} (43. Rxf6 Rh5 44. Rh6 (44. Qxc6 {leads to mate.} Rh2+ 45. Ke1 Qg3+ 46. Kd1 Qg1+) 44... Rxh1 $15) 43... Qg7 {[%emt 0:02:15]} 44. Rh7 $1 {[%emt 0:00:41]} Qg4 {[%emt 0:00:22] [#]} 45. Qh6 $1 {[%emt 0:08:27]} Rf5 {[%emt 0:01:48] [#]} ({Worse is} 45... Bg7 46. Rh8+ Bxh8 47. Bh7#) 46. Bf3 $1 {[%emt 0:00:52]} (46. Bxf5 $2 {too greedy.} Qxf5 47. Nd2 Qxh7 $19) 1-0

[Event "45th FIDE Olympiad 2024"]
[Site "Budapest"]
[Date "2024.09.15"]
[Round "5.55"]
[White "Monther, Alfardan"]
[Black "Hassuji, Nurdin"]
[Result "1-0"]
[ECO "C96"]
[WhiteElo "1834"]
[BlackElo "1847"]
[PlyCount "111"]
[EventDate "2024.09.05"]
[EventType "team-tourn"]
[EventCountry "HUN"]
[WhiteTeam "Bahrain"]
[BlackTeam "Tanzania"]
[WhiteTeamCountry "BHN"]
[BlackTeamCountry "TAN"]
[TimeControl "40/5400+30:1800+30"]

1. e4 e5 2. Nf3 Nc6 3. Bb5 a6 4. Ba4 Nf6 5. O-O Be7 6. Re1 b5 7. Bb3 O-O 8. c3 d6 9. h3 Na5 10. Bc2 c5 11. d4 Nc6 12. Be3 Qc7 13. Nbd2 Rd8 14. Rc1 Bd7 15. Nf1 Rac8 16. Ng3 Na5 17. b3 c4 18. b4 Nb7 19. d5 a5 20. a3 Ra8 21. Nh2 axb4 22. axb4 Ra3 23. Bd2 Rda8 24. Qf3 Qc8 25. Qe3 Ra2 26. f4 h6 27. fxe5 dxe5 28. Kh1 Nh7 29. Nf5 Bg5 30. Qxg5 Nxg5 31. Ne7+ Kf8 32. Nxc8 Bxc8 33. h4 Nh7 34. Nf3 f6 35. Rf1 Ke7 36. Be3 Kd6 37. Ne1 Nf8 38. Bd1 Ng6 39. h5 Ne7 40. Nf3 f5 41. exf5 Nxd5 42. Bg1 Bxf5 43. Bh2 Ne3 44. Re1 Ng4 45. Bxe5+ Nxe5 46. Nxe5 Rf8 47. Bf3 Nd8 48. Rcd1+ Kc7 49. Rd5 Rc2 50. Rxb5 Rxc3 51. Rc5+ Kb6 52. Nxc4+ Rxc4 53. Rxc4 Kb5 54. Rf4 Nc6 55. Bxc6+ Kxc6 56. g4 1-0

[Event "45th FIDE Olympiad 2024"]
[Site "Budapest"]
[Date "2024.09.15"]
[Round "5.56"]
[White "Pantzar, Milton"]
[Black "Hovhannisyan, Robert"]
[Result "1/2-1/2"]
[ECO "D35"]
[WhiteElo "2437"]
[BlackElo "2619"]
[Annotator "TA"]
[PlyCount "49"]
[EventDate "2024.09.05"]
[EventType "team-tourn"]
[EventCountry "HUN"]
[SourceTitle "playchess.com"]
[Source "ChessBase"]
[SourceQuality "1"]
[WhiteTeam "Sweden"]
[BlackTeam "Armenia"]
[WhiteTeamCountry "SWE"]
[BlackTeamCountry "ARM"]
[TimeControl "40/5400+30:1800+30"]

{[%evp 18,49,27,25,26,22,18,28,28,31,33,30,33,37,25,27,26,0,0,0,0,0,0,0,0,0,0,0,0,0,0,0,0,0]} 1. d4 {[%emt 0:00:06]} d5 {[%emt 0:00:22]} 2. c4 {[%emt 0:00:06]} e6 {[%emt 0:00:39]} 3. Nc3 {[%emt 0:00:23]} Nf6 {[%emt 0:00:07]} 4. cxd5 {[%emt 0:00:13]} exd5 {[%emt 0:00:07]} 5. Bg5 {[%emt 0:00:16]} c6 {[%emt 0:00:16]} 6. e3 {[%emt 0:00:34]} Bf5 {[%emt 0:00:25]} 7. Qf3 {[%emt 0:01:43]} Bg6 {[%emt 0:00:10]} 8. Bxf6 {[%emt 0:00:12]} Qxf6 {[%emt 0:00:06]} 9. Qxf6 {[%emt 0:00:09]} gxf6 {[%emt 0:00:04]} 10. h4 {[%emt 0:01:24][%cal Bh2h4,Bh4h5][%mdl 32]} Nd7 {[%emt 0:00:49]} 11. h5 {[%emt 0:08:32]} Bf5 {[%emt 0:00:08]} 12. h6 {[%emt 0:01:02]} Rg8 {[%emt 0:01:42] White has an edge.} 13. Nge2 {[%emt 0:01:46]} Rg6 {[%emt 0:02:19]} 14. Ng3 {[%emt 0:00:57]} Be6 {[%emt 0:00:40]} 15. Bd3 {[%emt 0:00:28]} Rxh6 {[%emt 0:00:44]} 16. Rxh6 {[%emt 0:00:14]} Bxh6 {[%emt 0:00:05]} 17. f4 {[%emt 0:07:57][%cal Oe1e2]} Nb6 $1 {[%emt 0:08:01] The position is equal.} 18. Kf2 {[%emt 0:04:09][%cal Oa1h1]} Bf8 {[%emt 0:02:44]} 19. Rh1 {[%emt 0:06:22]} h6 {[%emt 0:00:57]} 20. f5 {[%emt 0:06:21]} Bd7 {[%emt 0:02:15]} 21. Nh5 {[%emt 0:00:44]} Be7 {[%emt 0:01:49]} 22. Nf4 {[%emt 0:05:54]} Bf8 {[%emt 0:03:01]} 23. Nh5 {[%emt 0:01:04]} Be7 {[%emt 0:04:22]} 24. Nf4 {[%emt 0:01:18]} Bf8 {[%emt 0:07:13]} 25. Nh5 {[%emt 0:08:38] Weighted Error Value: White=0.02 (flawless) /Black=0.00 (flawless) .  Inaccurate:     	White=1     	---        OK:         	White=6     	Black=7      Best:        	---       	Black=3      Strong:       	---       	Black=1} 1/2-1/2

[Event "45th FIDE Olympiad 2024"]
[Site "Budapest"]
[Date "2024.09.15"]
[Round "5.56"]
[White "Henry, Marwa Michael"]
[Black "Shaker, Musab"]
[Result "0-1"]
[ECO "D46"]
[WhiteElo "1715"]
[BlackElo "1757"]
[PlyCount "72"]
[EventDate "2024.09.05"]
[EventType "team-tourn"]
[EventCountry "HUN"]
[WhiteTeam "Tanzania"]
[BlackTeam "Bahrain"]
[WhiteTeamCountry "TAN"]
[BlackTeamCountry "BHN"]
[TimeControl "40/5400+30:1800+30"]

1. Nf3 d5 2. d4 Nf6 3. c4 e6 4. e3 c6 5. Nc3 Bd6 6. Bd3 Nbd7 7. e4 dxc4 8. Bxc4 b5 9. Bd3 e5 10. dxe5 Nxe5 11. Nxe5 Bxe5 12. h3 a6 13. O-O O-O 14. Qe2 Bb7 15. Be3 Qe7 16. Rac1 c5 17. f3 c4 18. Bb1 Nh5 19. Qc2 Qh4 20. Ne2 g5 21. Bf2 Bg3 22. Nxg3 Nxg3 23. e5 f5 24. exf6 Rf7 25. Rfe1 Qf4 26. Re7 Rxe7 27. fxe7 Qxc1+ 28. Qxc1 Ne2+ 29. Kf1 Nxc1 30. Be3 Nd3 31. Bxd3 cxd3 32. Bxg5 Bd5 33. f4 Kf7 34. f5 Rc8 35. f6 Rc2 36. Be3 Bxg2+ {0-} 0-1

[Event "45th FIDE Olympiad 2024"]
[Site "Budapest"]
[Date "2024.09.15"]
[Round "5.57"]
[White "Deac, Bogdan-Daniel"]
[Black "Makhnev, Denis"]
[Result "1/2-1/2"]
[ECO "C88"]
[WhiteElo "2680"]
[BlackElo "2551"]
[Annotator "TA"]
[PlyCount "100"]
[EventDate "2024.09.05"]
[EventType "team-tourn"]
[EventCountry "HUN"]
[SourceTitle "playchess.com"]
[Source "ChessBase"]
[SourceQuality "1"]
[WhiteTeam "Romania"]
[BlackTeam "Kazakhstan"]
[WhiteTeamCountry "ROU"]
[BlackTeamCountry "KAZ"]
[TimeControl "40/5400+30:1800+30"]

{[%evp 29,100,25,22,15,20,27,39,0,0,0,0,0,0,0,0,0,-16,-10,-20,-23,0,0,0,-18,-18,-13,0,0,0,-59,-36,-54,-30,-62,-8,-44,-12,-39,-42,-45,-49,-41,-12,-36,-36,-50,-38,-43,-2,-59,-58,-82,0,0,0,0,0,0,0,0,0,0,0,0,0,0,0,0,0,0,0,0,0]} 1. e4 {[%emt 0:00:04]} e5 {[%emt 0:00:09]} 2. Nf3 {[%emt 0:00:02]} Nc6 {[%emt 0:00:11]} 3. Bb5 {[%emt 0:00:03]} a6 {[%emt 0:00:09]} 4. Ba4 {[%emt 0:00:02]} Nf6 {[%emt 0:00:10]} 5. O-O {[%emt 0:00:04]} Be7 {[%emt 0:00:09]} 6. Re1 {[%emt 0:00:04]} b5 {[%emt 0:00:11]} 7. Bb3 {[%emt 0:00:03]} O-O {[%emt 0:00:11]} 8. h3 {[%emt 0:06:54]} Bb7 {[%emt 0:00:32]} 9. d3 {[%emt 0:00:09]} d6 {[%emt 0:00:15]} 10. a3 {[%emt 0:00:56]} Nb8 {[%emt 0:13:57] is now debated instead of 10...Na5.} 11. Nbd2 {[%emt 0:15:53] C88: Closed Ruy Lopez: Anti-Marshall Systems.} Nbd7 {[%emt 0:00:19]} 12. Nf1 {[%emt 0:02:20]} Nc5 {[%emt 0:04:56]} 13. Ba2 {[%emt 0:01:18]} Ne6 {[%emt 0:00:16]} 14. b4 {[%emt 0:06:02]} Re8 {[%emt 0:01:58]} 15. Ng3 {[%emt 0:07:16]} Bf8 {[%emt 0:05:24]} 16. Ng5 $146 {[%emt 0:03:29]} ({Predecessor:} 16. Bb2 g6 17. c4 Bg7 18. Rc1 Nd7 19. d4 exd4 20. Nxd4 Nxd4 21. Bxd4 Ne5 22. c5 dxc5 23. Rxc5 {½-½ Granda Zuniga,J (2612)-Ponomariov,R (2723) Zafra Ruy Lopez op 1st rapid 2007 (6)}) 16... Nxg5 {[%emt 0:05:08]} 17. Bxg5 {[%emt 0:00:03]} h6 {[%emt 0:00:09]} 18. Bxf6 {[%emt 0:06:28]} Qxf6 {[%emt 0:00:12]} 19. Re3 {[%emt 0:00:13]} Qd8 $1 {[%emt 0:11:27]} 20. Qh5 {[%emt 0:01:52]} d5 {[%emt 0:08:18]} 21. exd5 {[%emt 0:00:31]} Bxd5 {[%emt 0:04:47]} 22. Bxd5 {[%emt 0:10:49]} Qxd5 {[%emt 0:00:07]} 23. Ne4 {[%emt 0:00:43]} Re6 {[%emt 0:10:11]} 24. Qf3 {[%emt 0:02:07]} Qc6 {[%emt 0:08:25]} 25. c4 {[%emt 0:00:28]} Rd8 {[%emt 0:02:13]} 26. Rae1 {[%emt 0:05:46]} a5 {[%emt 0:08:48]} 27. bxa5 {[%emt 0:00:19]} bxc4 {[%emt 0:00:10]} 28. dxc4 {[%emt 0:00:10]} Qa4 {[%emt 0:00:54]} 29. Rd3 {[%emt 0:04:54]} ({White should try} 29. Rb1 $11) 29... Rxd3 {[%emt 0:05:10]} 30. Qxd3 {[%emt 0:00:05]} Qxa5 {[%emt 0:00:03]} 31. Ra1 {[%emt 0:00:09]} Ra6 {[%emt 0:05:03]} (31... Qa4 $15) 32. a4 {[%emt 0:05:56]} Qb4 {[%emt 0:00:58]} 33. Qc2 {[%emt 0:00:10]} f5 {[%emt 0:01:16]} 34. Ng3 {[%emt 0:08:58]} g6 {[%emt 0:00:07]} 35. Nf1 {[%emt 0:00:07]} Bc5 {[%emt 0:01:04]} 36. Qd2 {[%emt 0:02:44]} Qxd2 {[%emt 0:01:37]} (36... Rxa4 $2 {loses.} 37. Qd5+ (37. Rxa4 Bxf2+ 38. Kxf2 Qxa4 $18) 37... Kg7 38. Qd7+ (38. Qxe5+ Kf7 $18) (38. Rxa4 Bxf2+ 39. Kxf2 Qxa4 $18) 38... Kf6 39. Qc6+ (39. Rxa4 Qb6 $18) 39... Kf7 40. Rxa4 $18 (40. Qxa4 Qxa4 41. Rxa4 Be7 $18)) 37. Nxd2 {[%emt 0:00:07]} Rd6 {[%emt 0:01:06]} 38. Ra2 {[%emt 0:04:05]} Bb4 {[%emt 0:00:40]} 39. Nf1 {[%emt 0:00:27]} (39. a5 $1 $11) 39... Kf7 $15 {[%emt 0:01:56]} 40. Ne3 {[%emt 0:01:55]} Rc6 {[%emt 0:01:07]} ({Black should play} 40... Ke6 $17 {And now ...f4 would win.} 41. g3 Ba5) 41. a5 $11 {[%emt 0:22:29]} Bc5 {[%emt 0:14:16]} 42. Nd5 {[%emt 0:00:28]} Ba7 {[%emt 0:00:05]} 43. Ra4 {[%emt 0:00:07]} Ke6 {[%emt 0:01:16]} 44. a6 {[%emt 0:05:53]} Kd7 {[%emt 0:02:28]} 45. Nc3 {[%emt 0:01:52]} Kc8 {[%emt 0:00:09]} 46. Nb5 {[%emt 0:04:42]} Kb8 {[%emt 0:00:05]} 47. Kf1 {[%emt 0:00:03]} Rb6 {[%emt 0:01:25]} 48. f3 {[%emt 0:00:31]} c6 {[%emt 0:00:35]} 49. Nxa7 {[%emt 0:00:04]} Kxa7 {[%emt 0:00:04]} 50. Ra5 {[%emt 0:00:05]} e4 {[%emt 0:03:08]} (50... Rxa6 51. Rxe5 h5 52. c5 $14) 1/2-1/2

[Event "45th FIDE Olympiad 2024"]
[Site "Budapest"]
[Date "2024.09.15"]
[Round "5.57"]
[White "Mathurin, Nathaniel"]
[Black "Morazo, John Ranel"]
[Result "0-1"]
[ECO "A38"]
[WhiteElo "1982"]
[BlackElo "2200"]
[PlyCount "97"]
[EventDate "2024.09.05"]
[EventType "team-tourn"]
[EventCountry "HUN"]
[WhiteTeam "Saint Lucia"]
[BlackTeam "Palau"]
[BlackTeamCountry "PAL"]
[TimeControl "40/5400+30:1800+30"]

1. Nf3 Nf6 2. c4 g6 3. Nc3 c5 4. g3 Bg7 5. Bg2 O-O 6. O-O Nc6 7. a3 a6 8. b4 b6 9. bxc5 bxc5 10. Ne1 Rb8 11. Ra2 Na5 12. d3 d6 13. Bg5 h6 14. Bd2 Bd7 15. Nc2 Bc6 16. Bxc6 Nxc6 17. Qc1 Qd7 18. Kg2 Kh7 19. Nd5 Qb7 20. Bc3 Nd4 21. Rb2 Nb3 22. Rxb3 Qxb3 23. Nxf6+ Bxf6 24. Bxf6 exf6 25. Ne3 Qb2 26. Nd5 Qxc1 27. Rxc1 Kg7 28. Kf3 Rfc8 29. Rc2 f5 30. h4 Rb3 31. a4 Rcb8 32. Ra2 Kf8 33. a5 Rb2 34. Ra1 Rb1 35. Rxb1 Rxb1 36. Nc7 Ke7 37. h5 Kd7 38. Nd5 Ra1 39. hxg6 fxg6 40. e4 fxe4+ 41. Kxe4 Rxa5 42. g4 Ra1 43. f4 a5 44. f5 gxf5+ 45. gxf5 Rf1 46. f6 Ke6 47. Nc7+ Kxf6 48. Kd5 Ke7 49. Nb5 {0-} 0-1